[Event "Titled Tuesday Blitz November 29 Early 2022"]
[White "Lesbekova, Assel"]
[Black "Fromm, Marius"]
[WhiteFideId "13713248"]
[BlackFideId "12993190"]
[WhiteElo "1700"]
[BlackElo "2325"]
[Result "0-1"]
[Round "03"]
[TimeControl "180+1"]
[Date "2022.11.30"]
[WhiteClock "0:00:02"]
[BlackClock "0:00:09"]

1. e4 {[%clk 0:03:00]}  c5 {[%clk 0:03:00]} 2. Nc3 {[%clk 0:03:00]}  d6 {[%clk 0:02:59]} 3. Nge2 {[%clk 0:02:58]}  Nf6 {[%clk 0:02:59]} 4. d4 {[%clk 0:02:55]}  cxd4 {[%clk 0:03:00]} 5. Nxd4 {[%clk 0:02:55]}  a6 {[%clk 0:03:01]} 6. f3 {[%clk 0:02:54]}  e5 {[%clk 0:03:01]} 7. Nb3 {[%clk 0:02:54]}  Be6 {[%clk 0:02:59]} 8. Be3 {[%clk 0:02:53]}  h5 {[%clk 0:03:00]} 9. Qd2 {[%clk 0:02:50]}  Nbd7 {[%clk 0:03:00]} 10. g3 {[%clk 0:02:44]}  Be7 {[%clk 0:02:52]} 11. Be2 {[%clk 0:02:37]}  Rc8 {[%clk 0:02:48]} 12. h3 {[%clk 0:02:34]}  Nb6 {[%clk 0:02:42]} 13. f4 {[%clk 0:02:29]}  Nc4 {[%clk 0:02:26]} 14. Bxc4 {[%clk 0:02:28]}  Rxc4 {[%clk 0:02:25]} 15. f5 {[%clk 0:02:26]}  Bd7 {[%clk 0:02:23]} 16. Qd3 {[%clk 0:02:23]}  Qc7 {[%clk 0:02:23]} 17. Nd2 {[%clk 0:02:19]}  Rc6 {[%clk 0:02:12]} 18. Bg5 {[%clk 0:02:16]}  b5 {[%clk 0:01:47]} 19. Bxf6 {[%clk 0:02:14]}  Bxf6 {[%clk 0:01:39]} 20. Nd5 {[%clk 0:02:14]}  Qd8 {[%clk 0:01:35]} 21. Nxf6+ {[%clk 0:02:01]}  Qxf6 {[%clk 0:01:36]} 22. Nf1 {[%clk 0:01:54]}  d5 {[%clk 0:01:22]} 23. Ne3 {[%clk 0:01:41]}  dxe4 {[%clk 0:01:13]} 24. Qxe4 {[%clk 0:01:42]}  Rd6 {[%clk 0:01:09]} 25. Qa8+ {[%clk 0:01:23]}  Qd8 {[%clk 0:01:09]} 26. Qxd8+ {[%clk 0:01:10]}  Kxd8 {[%clk 0:01:09]} 27. Rd1 {[%clk 0:01:08]}  Rxd1+ {[%clk 0:01:09]} 28. Kxd1 {[%clk 0:01:08]}  Bc6 {[%clk 0:01:03]} 29. Rh2 {[%clk 0:01:06]}  Ke7 {[%clk 0:01:03]} 30. Rd2 {[%clk 0:01:05]}  Rd8 {[%clk 0:00:56]} 31. Rxd8 {[%clk 0:01:03]}  Kxd8 {[%clk 0:00:57]} 32. Ke2 {[%clk 0:01:02]}  Ke7 {[%clk 0:00:56]} 33. Kd3 {[%clk 0:00:59]}  Kf6 {[%clk 0:00:43]} 34. c4 {[%clk 0:00:53]}  bxc4+ {[%clk 0:00:43]} 35. Kxc4 {[%clk 0:00:54]}  Be4 {[%clk 0:00:41]} 36. g4 {[%clk 0:00:49]}  Kg5 {[%clk 0:00:32]} 37. Kc3 {[%clk 0:00:43]}  Kf4 {[%clk 0:00:30]} 38. Kd2 {[%clk 0:00:38]}  h4 {[%clk 0:00:29]} 39. b4 {[%clk 0:00:24]}  f6 {[%clk 0:00:25]} 40. a4 {[%clk 0:00:24]}  Bc6 {[%clk 0:00:24]} 41. a5 {[%clk 0:00:20]}  Kg3 {[%clk 0:00:24]} 42. Ke2 {[%clk 0:00:20]}  Bb5+ {[%clk 0:00:18]} 43. Ke1 {[%clk 0:00:18]}  e4 {[%clk 0:00:14]} 44. Nd5 {[%clk 0:00:05]}  Kxh3 {[%clk 0:00:14]} 45. Nc7 {[%clk 0:00:04]}  Bd3 {[%clk 0:00:13]} 46. b5 {[%clk 0:00:04]}  axb5 {[%clk 0:00:10]} 47. a6 {[%clk 0:00:03]}  e3 {[%clk 0:00:10]} 48. a7 {[%clk 0:00:01]}  Be4 {[%clk 0:00:10]} 49. a8=Q {[%clk 0:00:02]}  Bxa8 {[%clk 0:00:10]} 50. Nxa8 {[%clk 0:00:03]}  Kxg4 {[%clk 0:00:10]} 51. Kf1 {[%clk 0:00:02]}  Kxf5 {[%clk 0:00:10]} 52. Kg2 {[%clk 0:00:02]}  b4 {[%clk 0:00:10]} 53. Nc7 {[%clk 0:00:02]}  b3 {[%clk 0:00:10]} 54. Nd5 {[%clk 0:00:01]}  b2 {[%clk 0:00:10]} 55. Nc3 {[%clk 0:00:02]}  g5 {[%clk 0:00:09]} 0-1


[Site "https://www.chess.com"]

[Event "Titled Tuesday Blitz November 29 Early 2022"]
[White "Lopez Del Alamo, Antonio"]
[Black "Manukyan, Sargis A."]
[WhiteFideId "2227339"]
[BlackFideId "13303970"]
[WhiteElo "2175"]
[BlackElo "2187"]
[Result "1-0"]
[Round "03"]
[TimeControl "180+1"]
[Date "2022.11.30"]
[WhiteClock "0:00:16"]
[BlackClock "0:00:10"]

1. e4 {[%clk 0:03:00]}  c5 {[%clk 0:02:58]} 2. Nf3 {[%clk 0:03:00]}  d6 {[%clk 0:02:58]} 3. d4 {[%clk 0:02:59]}  cxd4 {[%clk 0:02:59]} 4. Nxd4 {[%clk 0:02:56]}  Nf6 {[%clk 0:03:00]} 5. Nc3 {[%clk 0:02:56]}  g6 {[%clk 0:02:53]} 6. Be2 {[%clk 0:02:54]}  Bg7 {[%clk 0:02:50]} 7. O-O {[%clk 0:02:53]}  O-O {[%clk 0:02:51]} 8. Bg5 {[%clk 0:02:51]}  Nc6 {[%clk 0:02:51]} 9. Nb3 {[%clk 0:02:51]}  Be6 {[%clk 0:02:50]} 10. Kh1 {[%clk 0:02:50]}  b6 {[%clk 0:02:48]} 11. f4 {[%clk 0:02:42]}  Qc8 {[%clk 0:02:44]} 12. Bf3 {[%clk 0:02:26]}  Rd8 {[%clk 0:02:43]} 13. Nd5 {[%clk 0:02:21]}  Bxd5 {[%clk 0:02:38]} 14. exd5 {[%clk 0:02:20]}  Nb4 {[%clk 0:02:38]} 15. c3 {[%clk 0:02:19]}  Na6 {[%clk 0:02:35]} 16. Nd4 {[%clk 0:02:15]}  Nc5 {[%clk 0:02:33]} 17. Re1 {[%clk 0:02:01]}  Re8 {[%clk 0:02:33]} 18. b4 {[%clk 0:01:54]}  Ncd7 {[%clk 0:02:22]} 19. Nc6 {[%clk 0:01:51]}  Bf8 {[%clk 0:02:22]} 20. a4 {[%clk 0:01:44]}  Nb8 {[%clk 0:02:21]} 21. b5 {[%clk 0:01:40]}  Nxc6 {[%clk 0:02:21]} 22. dxc6 {[%clk 0:01:38]}  Qc7 {[%clk 0:02:21]} 23. Bxf6 {[%clk 0:01:34]}  exf6 {[%clk 0:02:22]} 24. Bd5 {[%clk 0:01:34]}  a5 {[%clk 0:02:13]} 25. f5 {[%clk 0:01:33]}  Bh6 {[%clk 0:02:11]} 26. Qf3 {[%clk 0:01:23]}  Kg7 {[%clk 0:02:10]} 27. g3 {[%clk 0:01:15]}  Re5 {[%clk 0:02:09]} 28. Rxe5 {[%clk 0:01:10]}  dxe5 {[%clk 0:02:08]} 29. c4 {[%clk 0:01:09]}  Rd8 {[%clk 0:02:08]} 30. Rf1 {[%clk 0:01:00]}  Rd6 {[%clk 0:02:00]} 31. Qb3 {[%clk 0:00:53]}  gxf5 {[%clk 0:01:31]} 32. c5 {[%clk 0:00:52]}  Rd8 {[%clk 0:01:23]} 33. Rxf5 {[%clk 0:00:46]}  Be3 {[%clk 0:01:10]} 34. Qxe3 {[%clk 0:00:41]}  Rxd5 {[%clk 0:01:10]} 35. cxb6 {[%clk 0:00:40]}  Qd6 {[%clk 0:01:09]} 36. Rf1 {[%clk 0:00:35]}  Rd3 {[%clk 0:00:54]} 37. Qf2 {[%clk 0:00:31]}  Rd2 {[%clk 0:00:37]} 38. Qf3 {[%clk 0:00:22]}  Rd3 {[%clk 0:00:32]} 39. Qg4+ {[%clk 0:00:22]}  Kh6 {[%clk 0:00:23]} 40. c7 {[%clk 0:00:20]}  Qd5+ {[%clk 0:00:22]} 41. Kg1 {[%clk 0:00:20]}  Rd2 {[%clk 0:00:07]} 42. Qh4+ {[%clk 0:00:17]}  Kg7 {[%clk 0:00:07]} 43. Qxf6+ {[%clk 0:00:17]}  Kg8 {[%clk 0:00:06]} 44. Qxf7+ {[%clk 0:00:16]}  Qxf7 {[%clk 0:00:06]} 45. Rxf7 {[%clk 0:00:17]}  Rd1+ {[%clk 0:00:06]} 46. Rf1 {[%clk 0:00:16]}  Rc1 {[%clk 0:00:07]} 47. Rxc1 {[%clk 0:00:16]}  Kf7 {[%clk 0:00:08]} 48. c8=Q {[%clk 0:00:15]}  Kg6 {[%clk 0:00:09]} 49. Qc5 {[%clk 0:00:15]}  Kh6 {[%clk 0:00:10]} 50. Qxe5 {[%clk 0:00:15]}  Kg6 {[%clk 0:00:09]} 51. Rc6+ {[%clk 0:00:16]}  Kf7 {[%clk 0:00:10]} 52. Qc7+ {[%clk 0:00:16]} 1-0


[Site "https://www.chess.com"]

[Event "Titled Tuesday Blitz November 29 Early 2022"]
[White "Lucas, Arthur"]
[Black "Yuan, Qingyu"]
[WhiteFideId "26093073"]
[BlackFideId "8609772"]
[WhiteElo "2251"]
[BlackElo "2359"]
[Result "0-1"]
[Round "03"]
[TimeControl "180+1"]
[Date "2022.11.30"]
[WhiteClock "0:00:03"]
[BlackClock "0:00:23"]

1. e4 {[%clk 0:03:00]}  e5 {[%clk 0:03:00]} 2. Nf3 {[%clk 0:03:00]}  Nc6 {[%clk 0:03:00]} 3. Bb5 {[%clk 0:02:59]}  Nf6 {[%clk 0:03:01]} 4. d3 {[%clk 0:02:58]}  Bc5 {[%clk 0:03:01]} 5. O-O {[%clk 0:02:57]}  Nd4 {[%clk 0:03:01]} 6. Nxd4 {[%clk 0:02:56]}  Bxd4 {[%clk 0:03:02]} 7. c3 {[%clk 0:02:55]}  Bb6 {[%clk 0:03:01]} 8. a4 {[%clk 0:02:48]}  c6 {[%clk 0:02:59]} 9. Bc4 {[%clk 0:02:48]}  h6 {[%clk 0:02:45]} 10. b4 {[%clk 0:02:43]}  O-O {[%clk 0:02:41]} 11. a5 {[%clk 0:02:43]}  Bc7 {[%clk 0:02:41]} 12. Nd2 {[%clk 0:02:38]}  d5 {[%clk 0:02:41]} 13. Bb3 {[%clk 0:02:38]}  Qe7 {[%clk 0:02:36]} 14. Re1 {[%clk 0:02:36]}  Be6 {[%clk 0:02:24]} 15. Ba3 {[%clk 0:02:06]}  Rfd8 {[%clk 0:02:15]} 16. h3 {[%clk 0:01:59]}  dxe4 {[%clk 0:02:06]} 17. Bxe6 {[%clk 0:01:59]}  Qxe6 {[%clk 0:01:58]} 18. dxe4 {[%clk 0:01:46]}  Rd3 {[%clk 0:01:51]} 19. Qc2 {[%clk 0:01:40]}  Rad8 {[%clk 0:01:51]} 20. Nf1 {[%clk 0:01:22]}  Qc4 {[%clk 0:01:39]} 21. Re3 {[%clk 0:00:57]}  Nxe4 {[%clk 0:01:05]} 22. Bb2 {[%clk 0:00:47]}  b6 {[%clk 0:00:54]} 23. a6 {[%clk 0:00:33]}  b5 {[%clk 0:00:53]} 24. Rae1 {[%clk 0:00:29]}  f5 {[%clk 0:00:41]} 25. Rxd3 {[%clk 0:00:25]}  Qxd3 {[%clk 0:00:39]} 26. Qxd3 {[%clk 0:00:15]}  Rxd3 {[%clk 0:00:40]} 27. f3 {[%clk 0:00:05]}  Nf6 {[%clk 0:00:32]} 28. Kh1 {[%clk 0:00:02]}  Nd5 {[%clk 0:00:32]} 29. Kh2 {[%clk 0:00:01]}  e4+ {[%clk 0:00:30]} 30. Kh1 {[%clk 0:00:02]}  exf3 {[%clk 0:00:23]} 31. gxf3 {[%clk 0:00:02]}  Rxf3 {[%clk 0:00:24]} 32. Nd2 {[%clk 0:00:01]}  Rxh3+ {[%clk 0:00:24]} 33. Kg2 {[%clk 0:00:01]}  Rh2+ {[%clk 0:00:24]} 34. Kf3 {[%clk 0:00:02]}  Rxd2 {[%clk 0:00:25]} 35. Re8+ {[%clk 0:00:02]}  Kf7 {[%clk 0:00:24]} 36. Ra8 {[%clk 0:00:02]}  g5 {[%clk 0:00:22]} 37. Rxa7 {[%clk 0:00:03]}  g4# {[%clk 0:00:23]} 0-1


[Site "https://www.chess.com"]

[Event "Titled Tuesday Blitz November 29 Early 2022"]
[White "Manukyan, Artyom"]
[Black "Hartikainen, Jarmo"]
[WhiteFideId "13305786"]
[BlackFideId "503134"]
[WhiteElo "2078"]
[BlackElo "2222"]
[Result "1-0"]
[Round "03"]
[TimeControl "180+1"]
[Date "2022.11.30"]
[WhiteClock "0:02:20"]
[BlackClock "0:00:14"]

1. e4 {[%clk 0:03:00]}  c5 {[%clk 0:02:59]} 2. b3 {[%clk 0:03:00]}  Nc6 {[%clk 0:02:56]} 3. Bb2 {[%clk 0:03:00]}  e5 {[%clk 0:02:56]} 4. Nc3 {[%clk 0:02:53]}  Nf6 {[%clk 0:02:52]} 5. Nf3 {[%clk 0:02:49]}  d6 {[%clk 0:02:47]} 6. Bc4 {[%clk 0:02:49]}  Bg4 {[%clk 0:02:40]} 7. h3 {[%clk 0:02:49]}  Bh5 {[%clk 0:02:40]} 8. g4 {[%clk 0:02:49]}  Bg6 {[%clk 0:02:40]} 9. Qe2 {[%clk 0:02:50]}  Be7 {[%clk 0:02:32]} 10. O-O-O {[%clk 0:02:47]}  a6 {[%clk 0:02:21]} 11. a4 {[%clk 0:02:43]}  O-O {[%clk 0:02:17]} 12. g5 {[%clk 0:02:41]}  Nh5 {[%clk 0:02:15]} 13. Nd5 {[%clk 0:02:40]}  Nd4 {[%clk 0:01:34]} 14. Nxd4 {[%clk 0:02:36]}  cxd4 {[%clk 0:01:34]} 15. h4 {[%clk 0:02:37]}  Rc8 {[%clk 0:01:32]} 16. Kb1 {[%clk 0:02:34]}  Re8 {[%clk 0:01:13]} 17. Qg4 {[%clk 0:02:31]}  b5 {[%clk 0:00:59]} 18. axb5 {[%clk 0:02:28]}  axb5 {[%clk 0:00:47]} 19. Bxb5 {[%clk 0:02:29]}  Qa5 {[%clk 0:00:26]} 20. Nxe7+ {[%clk 0:02:26]}  Kh8 {[%clk 0:00:21]} 21. Nxc8 {[%clk 0:02:22]}  f5 {[%clk 0:00:15]} 22. gxf6 {[%clk 0:02:21]}  Qxb5 {[%clk 0:00:14]} 23. Nxd6 {[%clk 0:02:20]} 1-0


[Site "https://www.chess.com"]

[Event "Titled Tuesday Blitz November 29 Early 2022"]
[White "Matinian, Nikita"]
[Black "Garagulya, Konstantin"]
[WhiteFideId "24129100"]
[BlackFideId "4128931"]
[WhiteElo "2422"]
[BlackElo "2329"]
[Result "1-0"]
[Round "03"]
[TimeControl "180+1"]
[Date "2022.11.30"]
[WhiteClock "0:00:54"]
[BlackClock "0:00:14"]

1. e4 {[%clk 0:03:00]}  c5 {[%clk 0:02:54]} 2. Nf3 {[%clk 0:03:00]}  a6 {[%clk 0:02:54]} 3. g3 {[%clk 0:02:59]}  b5 {[%clk 0:02:53]} 4. Bg2 {[%clk 0:02:56]}  Bb7 {[%clk 0:02:53]} 5. d3 {[%clk 0:02:55]}  e6 {[%clk 0:02:53]} 6. O-O {[%clk 0:02:54]}  Ne7 {[%clk 0:02:53]} 7. Re1 {[%clk 0:02:53]}  d5 {[%clk 0:02:53]} 8. e5 {[%clk 0:02:53]}  Nbc6 {[%clk 0:02:48]} 9. Nbd2 {[%clk 0:02:52]}  Ng6 {[%clk 0:02:43]} 10. Nf1 {[%clk 0:02:46]}  Qc7 {[%clk 0:02:43]} 11. Qe2 {[%clk 0:02:46]}  Nd4 {[%clk 0:02:42]} 12. Nxd4 {[%clk 0:02:46]}  cxd4 {[%clk 0:02:43]} 13. Bd2 {[%clk 0:02:39]}  Qxc2 {[%clk 0:02:39]} 14. h4 {[%clk 0:02:38]}  Qc7 {[%clk 0:02:07]} 15. h5 {[%clk 0:02:37]}  Ne7 {[%clk 0:02:08]} 16. g4 {[%clk 0:02:34]}  h6 {[%clk 0:02:07]} 17. Ng3 {[%clk 0:02:33]}  Nc6 {[%clk 0:02:04]} 18. f4 {[%clk 0:02:31]}  Be7 {[%clk 0:02:04]} 19. f5 {[%clk 0:02:30]}  Bh4 {[%clk 0:02:01]} 20. Kh2 {[%clk 0:02:30]}  Bxg3+ {[%clk 0:01:49]} 21. Kxg3 {[%clk 0:02:30]}  O-O-O {[%clk 0:01:49]} 22. Rac1 {[%clk 0:02:28]}  Kb8 {[%clk 0:01:49]} 23. Bf4 {[%clk 0:02:25]}  Ka8 {[%clk 0:01:42]} 24. Rc5 {[%clk 0:02:12]}  Qd7 {[%clk 0:01:39]} 25. Rec1 {[%clk 0:02:12]}  Rc8 {[%clk 0:01:39]} 26. f6 {[%clk 0:02:05]}  gxf6 {[%clk 0:01:31]} 27. exf6 {[%clk 0:02:05]}  e5 {[%clk 0:01:31]} 28. Bxe5 {[%clk 0:01:55]}  Rhe8 {[%clk 0:01:27]} 29. Rxd5 {[%clk 0:01:54]}  Qe6 {[%clk 0:01:27]} 30. Rdc5 {[%clk 0:01:22]}  Nxe5 {[%clk 0:01:09]} 31. Rxc8+ {[%clk 0:01:21]}  Rxc8 {[%clk 0:01:08]} 32. Rxc8+ {[%clk 0:01:22]}  Qxc8 {[%clk 0:01:08]} 33. Bxb7+ {[%clk 0:01:18]}  Kxb7 {[%clk 0:01:08]} 34. Qxe5 {[%clk 0:01:19]}  Qc1 {[%clk 0:01:04]} 35. Qxd4 {[%clk 0:01:15]}  Qe1+ {[%clk 0:00:58]} 36. Kf4 {[%clk 0:01:13]}  Qf1+ {[%clk 0:00:51]} 37. Ke5 {[%clk 0:01:13]}  Qh3 {[%clk 0:00:39]} 38. Qd7+ {[%clk 0:01:08]}  Kb6 {[%clk 0:00:38]} 39. Qxf7 {[%clk 0:01:03]}  Qe3+ {[%clk 0:00:31]} 40. Kd6 {[%clk 0:00:53]}  Qxd3+ {[%clk 0:00:30]} 41. Qd5 {[%clk 0:00:52]}  Qg3+ {[%clk 0:00:29]} 42. Kd7 {[%clk 0:00:52]}  Qxg4+ {[%clk 0:00:27]} 43. Qe6+ {[%clk 0:00:52]}  Qxe6+ {[%clk 0:00:14]} 44. Kxe6 {[%clk 0:00:53]}  b4 {[%clk 0:00:14]} 45. f7 {[%clk 0:00:54]}  b3 {[%clk 0:00:14]} 46. axb3 {[%clk 0:00:54]} 1-0


[Site "https://www.chess.com"]

[Event "Titled Tuesday Blitz November 29 Early 2022"]
[White "Megalios, Konstantinos"]
[Black "Leve, Nitai"]
[WhiteFideId "4238044"]
[BlackFideId "2006898"]
[WhiteElo "2277"]
[BlackElo "2144"]
[Result "1-0"]
[Round "03"]
[TimeControl "180+1"]
[Date "2022.11.30"]
[WhiteClock "0:00:11"]
[BlackClock "0:00:02"]

1. e4 {[%clk 0:03:00]}  e6 {[%clk 0:02:58]} 2. d3 {[%clk 0:02:58]}  d5 {[%clk 0:02:59]} 3. Nd2 {[%clk 0:02:57]}  Nf6 {[%clk 0:02:59]} 4. Ngf3 {[%clk 0:02:57]}  b6 {[%clk 0:02:58]} 5. c3 {[%clk 0:02:46]}  Bb7 {[%clk 0:02:58]} 6. Qc2 {[%clk 0:02:43]}  c5 {[%clk 0:02:49]} 7. Be2 {[%clk 0:02:41]}  Nc6 {[%clk 0:02:44]} 8. O-O {[%clk 0:02:41]}  Qc7 {[%clk 0:02:42]} 9. Re1 {[%clk 0:02:41]}  O-O-O {[%clk 0:02:41]} 10. a3 {[%clk 0:02:40]}  h6 {[%clk 0:02:32]} 11. b4 {[%clk 0:02:29]}  cxb4 {[%clk 0:02:25]} 12. cxb4 {[%clk 0:02:28]}  dxe4 {[%clk 0:02:18]} 13. dxe4 {[%clk 0:02:27]}  Nd4 {[%clk 0:02:05]} 14. Qxc7+ {[%clk 0:02:25]}  Kxc7 {[%clk 0:02:06]} 15. Bb2 {[%clk 0:02:00]}  Nxf3+ {[%clk 0:01:51]} 16. Nxf3 {[%clk 0:02:00]}  Nxe4 {[%clk 0:01:45]} 17. Ne5 {[%clk 0:01:49]}  Nd6 {[%clk 0:01:03]} 18. Rac1+ {[%clk 0:01:48]}  Kb8 {[%clk 0:01:02]} 19. Red1 {[%clk 0:01:27]}  f6 {[%clk 0:00:59]} 20. Nc6+ {[%clk 0:01:06]}  Bxc6 {[%clk 0:00:58]} 21. Rxc6 {[%clk 0:01:07]}  Be7 {[%clk 0:00:53]} 22. Kf1 {[%clk 0:00:59]}  e5 {[%clk 0:00:49]} 23. Ba6 {[%clk 0:00:55]}  Nb7 {[%clk 0:00:23]} 24. Rdc1 {[%clk 0:00:54]}  Rc8 {[%clk 0:00:22]} 25. Ke2 {[%clk 0:00:42]}  Rxc6 {[%clk 0:00:20]} 26. Rxc6 {[%clk 0:00:43]}  Rc8 {[%clk 0:00:19]} 27. Rxc8+ {[%clk 0:00:41]}  Kxc8 {[%clk 0:00:20]} 28. Kf3 {[%clk 0:00:20]}  Kc7 {[%clk 0:00:18]} 29. Ke4 {[%clk 0:00:20]}  Nd6+ {[%clk 0:00:10]} 30. Kd5 {[%clk 0:00:20]}  b5 {[%clk 0:00:08]} 31. Ke6 {[%clk 0:00:16]}  Bf8 {[%clk 0:00:08]} 32. Bc1 {[%clk 0:00:12]}  Kb6 {[%clk 0:00:07]} 33. Be3+ {[%clk 0:00:12]}  Kxa6 {[%clk 0:00:07]} 34. Bc5 {[%clk 0:00:13]}  Nc4 {[%clk 0:00:02]} 35. Bxf8 {[%clk 0:00:12]}  Nxa3 {[%clk 0:00:02]} 36. Bxg7 {[%clk 0:00:12]}  Nc2 {[%clk 0:00:03]} 37. Bf8 {[%clk 0:00:12]}  Ne1 {[%clk 0:00:01]} 38. g4 {[%clk 0:00:11]}  Nd3 {[%clk 0:00:02]} 39. f3 {[%clk 0:00:11]}  Ne1 {[%clk 0:00:02]} 40. Kxf6 {[%clk 0:00:10]}  Nxf3 {[%clk 0:00:03]} 41. h3 {[%clk 0:00:09]}  Kb6 {[%clk 0:00:02]} 42. Bxh6 {[%clk 0:00:09]}  a5 {[%clk 0:00:02]} 43. Be3+ {[%clk 0:00:10]}  Ka6 {[%clk 0:00:02]} 44. bxa5 {[%clk 0:00:11]}  Kxa5 {[%clk 0:00:03]} 45. g5 {[%clk 0:00:11]}  b4 {[%clk 0:00:02]} 46. g6 {[%clk 0:00:11]}  b3 {[%clk 0:00:02]} 47. Bc1 {[%clk 0:00:11]} 1-0


[Site "https://www.chess.com"]

[Event "Titled Tuesday Blitz November 29 Early 2022"]
[White "Migot, Tangi"]
[Black "Ozen, Bahadir"]
[WhiteFideId "662445"]
[BlackFideId "6337058"]
[WhiteElo "2586"]
[BlackElo "2503"]
[Result "0-1"]
[Round "03"]
[TimeControl "180+1"]
[Date "2022.11.30"]
[WhiteClock "0:00:52"]
[BlackClock "0:00:49"]

1. e4 {[%clk 0:03:00]}  d6 {[%clk 0:02:59]} 2. d4 {[%clk 0:03:00]}  Nf6 {[%clk 0:03:00]} 3. Nc3 {[%clk 0:03:01]}  Nbd7 {[%clk 0:03:00]} 4. g3 {[%clk 0:03:00]}  e5 {[%clk 0:03:01]} 5. Nge2 {[%clk 0:03:00]}  c6 {[%clk 0:03:00]} 6. Bg2 {[%clk 0:03:01]}  Be7 {[%clk 0:02:56]} 7. O-O {[%clk 0:03:00]}  O-O {[%clk 0:02:56]} 8. h3 {[%clk 0:03:01]}  b5 {[%clk 0:02:55]} 9. a3 {[%clk 0:03:00]}  Bb7 {[%clk 0:02:49]} 10. dxe5 {[%clk 0:02:49]}  dxe5 {[%clk 0:02:48]} 11. g4 {[%clk 0:02:49]}  a5 {[%clk 0:02:41]} 12. Ng3 {[%clk 0:02:47]}  b4 {[%clk 0:02:40]} 13. axb4 {[%clk 0:02:48]}  axb4 {[%clk 0:02:41]} 14. Rxa8 {[%clk 0:02:48]}  Bxa8 {[%clk 0:02:42]} 15. Nce2 {[%clk 0:02:42]}  Nc5 {[%clk 0:02:36]} 16. g5 {[%clk 0:02:35]}  Nfd7 {[%clk 0:02:29]} 17. h4 {[%clk 0:02:28]}  g6 {[%clk 0:02:24]} 18. Be3 {[%clk 0:02:23]}  Bb7 {[%clk 0:02:19]} 19. Qd2 {[%clk 0:02:21]}  b3 {[%clk 0:01:54]} 20. cxb3 {[%clk 0:01:55]}  Nxb3 {[%clk 0:01:54]} 21. Qc3 {[%clk 0:01:50]}  Nbc5 {[%clk 0:01:50]} 22. b4 {[%clk 0:01:44]}  Na6 {[%clk 0:01:22]} 23. Rb1 {[%clk 0:01:37]}  Re8 {[%clk 0:01:21]} 24. Nc1 {[%clk 0:01:22]}  Bf8 {[%clk 0:01:15]} 25. Nd3 {[%clk 0:01:22]}  Nc7 {[%clk 0:01:11]} 26. Nc5 {[%clk 0:01:12]}  Nb5 {[%clk 0:01:02]} 27. Qc4 {[%clk 0:01:05]}  Nxc5 {[%clk 0:00:58]} 28. Bxc5 {[%clk 0:01:04]}  Na3 {[%clk 0:00:58]} 29. Qc1 {[%clk 0:01:03]}  Nxb1 {[%clk 0:00:58]} 30. Qxb1 {[%clk 0:01:03]}  Bxc5 {[%clk 0:00:56]} 31. bxc5 {[%clk 0:01:04]}  Ba6 {[%clk 0:00:57]} 32. h5 {[%clk 0:01:01]}  Qxg5 {[%clk 0:00:56]} 33. Qb6 {[%clk 0:01:00]}  Bb5 {[%clk 0:00:56]} 34. hxg6 {[%clk 0:00:54]}  hxg6 {[%clk 0:00:57]} 35. Bf1 {[%clk 0:00:54]}  Bxf1 {[%clk 0:00:56]} 36. Kxf1 {[%clk 0:00:55]}  Qf6 {[%clk 0:00:54]} 37. Ke2 {[%clk 0:00:54]}  Kg7 {[%clk 0:00:54]} 38. Qc7 {[%clk 0:00:54]}  Qe6 {[%clk 0:00:50]} 39. Nf1 {[%clk 0:00:53]}  Qc4+ {[%clk 0:00:50]} 40. Kf3 {[%clk 0:00:52]}  Qxf1 {[%clk 0:00:49]} 0-1


[Site "https://www.chess.com"]

[Event "Titled Tuesday Blitz November 29 Early 2022"]
[White "Mohamed Anees M"]
[Black "Makhmudov, Shukhrat"]
[WhiteFideId "35065815"]
[BlackFideId "14200775"]
[WhiteElo "2135"]
[BlackElo "2135"]
[Result "1-0"]
[Round "03"]
[TimeControl "180+1"]
[Date "2022.11.30"]
[WhiteClock "0:01:45"]
[BlackClock "0:00:08"]

1. e4 {[%clk 0:03:00]}  e5 {[%clk 0:02:57]} 2. Nf3 {[%clk 0:03:00]}  Nc6 {[%clk 0:02:57]} 3. Bb5 {[%clk 0:03:00]}  a6 {[%clk 0:02:57]} 4. Ba4 {[%clk 0:03:00]}  Nf6 {[%clk 0:02:56]} 5. O-O {[%clk 0:03:01]}  Be7 {[%clk 0:02:56]} 6. Re1 {[%clk 0:03:01]}  b5 {[%clk 0:02:56]} 7. Bb3 {[%clk 0:03:01]}  O-O {[%clk 0:02:56]} 8. h3 {[%clk 0:03:02]}  d6 {[%clk 0:02:54]} 9. c3 {[%clk 0:03:02]}  Na5 {[%clk 0:02:54]} 10. Bc2 {[%clk 0:03:02]}  c5 {[%clk 0:02:54]} 11. d4 {[%clk 0:03:02]}  Qc7 {[%clk 0:02:55]} 12. Nbd2 {[%clk 0:02:59]}  Rd8 {[%clk 0:02:54]} 13. b3 {[%clk 0:02:57]}  cxd4 {[%clk 0:02:39]} 14. cxd4 {[%clk 0:02:57]}  Nc6 {[%clk 0:02:39]} 15. Bb2 {[%clk 0:02:57]}  exd4 {[%clk 0:02:23]} 16. Nxd4 {[%clk 0:02:56]}  Nxd4 {[%clk 0:02:06]} 17. Bxd4 {[%clk 0:02:55]}  d5 {[%clk 0:02:07]} 18. e5 {[%clk 0:02:54]}  Ne4 {[%clk 0:02:07]} 19. Bd3 {[%clk 0:02:12]}  Bb4 {[%clk 0:01:57]} 20. Nxe4 {[%clk 0:02:05]}  dxe4 {[%clk 0:01:53]} 21. Rxe4 {[%clk 0:02:04]}  Bb7 {[%clk 0:01:49]} 22. Rh4 {[%clk 0:02:01]}  h6 {[%clk 0:01:24]} 23. Qe2 {[%clk 0:01:52]}  Rxd4 {[%clk 0:00:17]} 24. Rxd4 {[%clk 0:01:50]}  Bc3 {[%clk 0:00:13]} 25. Rc1 {[%clk 0:01:49]}  Qc6 {[%clk 0:00:11]} 26. Be4 {[%clk 0:01:46]}  Bxd4 {[%clk 0:00:07]} 27. Bxc6 {[%clk 0:01:45]}  Bxc6 {[%clk 0:00:08]} 28. Rxc6 {[%clk 0:01:45]} 1-0


[Site "https://www.chess.com"]